Cogmind - Beta 9.2 @@@ ROGUE MODE // 2019.11.30 @ 21:33:49 Player: Demise Result: Destroyed by D-53 Grenadier with Mini Grenade Launcher Performance ------------- Evolutions (0) 0 Regions Visited (2) 400 Robots Destroyed (14) 70 Value Destroyed (170) 170 Prototype IDs (0) 0 Alien Tech Used (0) 0 Bonus (0) 0 TOTAL SCORE: 640 Bonus ------- None Cogmind --------- Core Integrity 0/250 Matter 300/300 Energy 100/100 System Corruption 1% Temperature Cool (0) Movement Core (50) Location -10/Mines Parts ------- > --- POWER (1) -------- (None) > --- PROPULSION (2) --- (None) > --- UTILITY (2) ------ Seismic Analyzer > --- WEAPON (2) ------- (None) > --- INVENTORY (4) ---- Aluminum Leg Large Storage Unit Grenade Launcher Mining Laser Peak State ------------ > --- POWER ------------ Ion Engine > --- PROPULSION ------- Wheel Wheel > --- UTILITY ---------- Improved Terrain Scanner Seismic Analyzer > --- WEAPON ----------- EM Pulse Gun EM Pulse Gun > --- INVENTORY -------- Aluminum Leg Small Storage Unit Mining Laser [Rating: 8] Favorites ----------- Power Ion Engine Engine Ion Engine Propulsion Wheel Leg Aluminum Leg Wheel Wheel Flight Unit Flight Unit Utility Seismic Analyzer Device Improved Terrain Scanner Storage Large Storage Unit Processor Seismic Analyzer Weapon EM Pulse Gun Energy Gun EM Pulse Gun Ballistic Gun Light Assault Rifle Build | -11 -10 -10 ------- Run | Scr Mat Min Slots Evolved . | . . . Power . | . . . Propulsion . | . . . Utility . | . . . Weapon . | . . . Parts Attached 17 | 9 2 6 Power 3 | 1 . 2 Engine 3 | 1 . 2 Core . | . . . Reactor . | . . . Propulsion 6 | 5 . 1 Treads . | . . . Leg 1 | 1 . . Wheel 4 | 4 . . Hover . | . . . Flight 1 | . . 1 Utility 5 | 1 2 2 Device 3 | 1 1 1 Storage 1 | . . 1 Processor 1 | . 1 . Hackware . | . . . Protection . | . . . Artifact . | . . . Weapon 3 | 2 . 1 Energy Gun 2 | 2 . . Energy Cannon . | . . . Ballistic Gun 1 | . . 1 Ballistic Cannon . | . . . Launcher . | . . . Special Weapon . | . . . Impact Weapon . | . . . Slashing Weapon . | . . . Piercing Weapon . | . . . Special Melee Weapon . | . . . Unidentified Prototypes . | . . . Parts Lost 7 | . . 7 Power 1 | . . 1 Propulsion 2 | . . 2 Utility 1 | . . 1 Weapon 3 | . . 3 Highest Loss Streak 4 | . . 4 Average Slot Usage (%) 79 | . 95 73 Engine 12 | . 14 11 Wheel 15 | . 28 10 Flight 5 | . . 7 Device 12 | . 9 13 Processor 14 | . 14 14 Energy Gun 13 | . 28 7 Ballistic Gun 5 | . . 8 Naked Turns . | . . . Heaviest Build 10 | 10 10 10 Greatest Support 26 | 26 20 20 Greatest Overweight (x) 1 | . . 1 Average Overweight (x) . | . . . Largest Inventory Capacity 10 | 4 4 10 Average Capacity 4 | 4 4 4 Most Carried 4 | 4 4 4 Average Carried 3 | 2 3 4 Final Capacity 4 | 4 4 4 Final Carried 4 | 4 4 4 Class Distribution -------------------- 71% | Mutant 28% | Scavenger-Mutant Dominant Class ---------------- Mutant | -10/Materials Scavenger-Mutant | -10/Mines Resources | -11 -10 -10 ----------- Run | Scr Mat Min Matter Collected 351 | 290 15 46 Remotely . | . . . Salvage Created 407 | 238 15 154 Parts 29 | 19 2 8 Haulers Intercepted . | . . . Recyclers Shooed . | . . . Parts Field Recycled . | . . . Retrieved Matter . | . . . Parts Self-Destructed . | . . . Prevented . | . . . Kills | -11 -10 -10 ------- Run | Scr Mat Min Combat Hostiles Destroyed 5 | . . 5 Melee 1 | . . 1 Guns 4 | . . 4 Classes Destroyed 6 | 3 1 2 Worker 2 | 2 . . Tunneler 5 | 5 . . Recycler 1 | 1 . . Operator 1 | . 1 . Swarmer 3 | . . 3 Grunt 2 | . . 2 Best Kill Streak 3 | 3 1 2 Combat Bots Only 2 | . . 2 Max Kills in Single Turn 1 | 1 1 1 Gunslinging . | . . . Exploded . | . . . Melee 1 | . . 1 Uniques/NPCs Destroyed . | . . . Combat | -11 -10 -10 -------- Run | Scr Mat Min Damage Taken 628 | . . 628 Core 264 | . . 264 Absorbed by Shields . | . . . Core Remaining (%) 100 | 100 . . Volleys Fired 25 | 12 1 12 Largest 2 | 2 2 2 Hottest 80 | 80 80 80 Shots Fired 45 | 24 2 19 Gun 45 | 24 2 19 Cannon . | . . . Launcher . | . . . Special . | . . . Kinetic 1 | . . 1 Thermal . | . . . Explosive . | . . . Electromagnetic 44 | 24 2 18 Robot Hit Streak 16 | 8 7 16 Robot Miss Streak 3 | 3 . 2 Penetration Max . | . . . Secondary Targets . | . . . Shots Hit Robots 31 | 16 1 14 Core Hits 20 | 9 1 10 Critical Hits . | . . . Critical Kills . | . . . Critical Parts Destroyed . | . . . Melee Attacks . | . . . Impact . | . . . Slashing . | . . . Piercing . | . . . Sneak Attacks . | . . . Combat Hostiles . | . . . Follow-up Attacks . | . . . Damage Inflicted 439 | 234 15 190 Guns 420 | 234 15 171 Cannons . | . . . Explosions . | . . . Melee . | . . . Ramming 19 | . . 19 Kinetic 8 | . . 8 Thermal . | . . . Explosive . | . . . Electromagnetic 412 | 234 15 163 Impact . | . . . Slashing . | . . . Piercing . | . . . Highest Corruption 1 | . . 1 Average Corruption 1 | . . 1 Corruption Purged . | . . . Overload Shots . | . . . Overflow Damage . | . . . Projectiles . | . . . Explosions . | . . . Melee . | . . . Knockbacks . | . . . Impact . | . . . Kinetic . | . . . Secondary . | . . . Self-Inflicted Damage 8 | . . 8 Shots . | . . . Rammed 5 | . . 5 Targets Rammed 5 | . . 5 Kicked . | . . . Crushed . | . . . Highest Temperature 161 | 108 18 161 Average Temperature 46 | 35 12 61 Received Heat Transfer 93 | . . 93 Siege Activations . | . . . Robots Corrupted . | . . . Combat Hostiles . | . . . Parts Fried 1 | 1 . . Impact Corruptions . | . . . Robots Melted . | . . . Combat Hostiles . | . . . Parts Melted . | . . . Heat Transferred . | . . . Parts Sabotaged . | . . . Parts Stolen . | . . . Parts Stripped . | . . . Power Chain Reactions . | . . . Missiles Intercepted . | . . . Alert | -11 -10 -10 ------- Run | Scr Mat Min Peak Influence 112 | 40 59 112 Average Influence 58 | 18 39 90 Maximum Alert Level . | . . . Low Security (%) 100 | 100 100 100 Level 1 . | . . . Level 2 . | . . . Level 3 . | . . . Level 4 . | . . . Level 5 . | . . . High Security . | . . . Max Security . | . . . Squads Dispatched . | . . . Investigation . | . . . Extermination . | . . . Reinforcement . | . . . Assault . | . . . Garrison . | . . . Intercept . | . . . Construction Impeded . | . . . Haulers Reinforced . | . . . Stealth | -11 -10 -10 --------- Run | Scr Mat Min Distress Signals . | . . . Communications Jammed . | . . . Distress Signals . | . . . Times Spotted 12 | . 1 11 Peak Tracking Total 5 | . 1 5 Tactical Retreats 1 | . . 1 Traps | -11 -10 -10 ------- Run | Scr Mat Min Traps Triggered . | . . . Indirectly . | . . . Trap Hack Attempts . | . . . Triggered . | . . . Disarmed . | . . . Reprogrammed . | . . . Reused . | . . . Traps Extracted . | . . . Installed . | . . . Triggered . | . . . Machines | -11 -10 -10 ---------- Run | Scr Mat Min Machines Disabled . | . . . Max in Single Turn . | . . . Machines Sabotaged . | . . . Garrisons Compromised . | . . . Overloaded Fab Kills . | . . . Fab Network Shutdowns . | . . . Hacking | -11 -10 -10 --------- Run | Scr Mat Min Machines Accessed 3 | . 3 . Terminals 2 | . 2 . Fabricators . | . . . Repair Stations 1 | . 1 . Recycling Units . | . . . Scanalyzers . | . . . Garrison Access . | . . . Total Hacks 8 | . 8 . Successful 7 | . 7 . Failed 1 | . 1 . Catastrophic . | . . . Database Lockouts . | . . . Manual 5 | . 5 . Terminals 6 | . 6 . Fabricators . | . . . Repair Stations 2 | . 2 . Recycling Units . | . . . Scanalyzers . | . . . Garrison Access . | . . . Terminal Hacks 3 | . 3 . Part Schematic 1 | . 1 . Branch Access Points 1 | . 1 . Locate Traps 1 | . 1 . Fabricator Hacks . | . . . Repair Station Hacks 2 | . 2 . Scan Component 1 | . 1 . Repair 1 | . 1 . Recycling Unit Hacks . | . . . Scanalyzer . | . . . Garrison Access Hacks . | . . . Unauthorized Hacks 4 | . 4 . Terminals 2 | . 2 . Botnet 2 | . 2 . Fabricators . | . . . Repair Stations . | . . . Recycling Units . | . . . Scanalyzers . | . . . Garrison Access . | . . . Data Cores Recovered 1 | . 1 . Used 1 | . 1 . Hacking Detections 3 | . 3 . Full Trace Events . | . . . Feedback Events . | . . . Feedback Blocked . | . . . Robot Schematics Acquired . | . . . Robots Built . | . . . Matter . | . . . Time . | . . . Total Robot Build Rating . | . . . Part Schematics Acquired 1 | . 1 . Parts Built . | . . . Matter . | . . . Time . | . . . Total Part Build Rating . | . . . Parts Repaired 1 | . 1 . Time 32 | . 32 . Parts Recycled . | . . . Recycled Matter . | . . . Retrieved Matter . | . . . Retrieved Components . | . . . Parts Scanalyzed . | . . . Part Schematics Acquired . | . . . Parts Damaged . | . . . Bothacking | -11 -10 -10 ------------ Run | Scr Mat Min Used RIF Installer . | . . . Robots Hacked . | . . . Non-combat . | . . . Combat . | . . . Robot Hacks Applied . | . . . Relay Couplers Released . | . . . Robots Rewired . | . . . Allies Hacked . | . . . Hacks Repelled . | . . . Allies | -11 -10 -10 -------- Run | Scr Mat Min Total Allies . | . . . Largest Group . | . . . Highest-Rated Group . | . . . Highest-Rated Ally . | . . . Total Orders . | . . . Ally Attacks . | . . . Total Damage . | . . . Kills . | . . . Allies Corrupted . | . . . Allies Melted . | . . . Intel | -11 -10 -10 ------- Run | Scr Mat Min Robot Analysis Total . | . . . Derelict Logs Recovered 1 | . . 1 Drone Launches . | . . . Drone Recoveries . | . . . Exploration | -11 -10 -10 ------------- Run | Scr Mat Min Turns Passed 423 | 120 97 206 Spaces Moved 320 | 77 72 171 Core 44 | 1 . 43 Treads . | . . . Legs 1 | 1 . . Wheels 179 | 75 72 32 Hover . | . . . Flight 96 | . . 96 Fastest Speed 40 | 50 80 40 Average Speed 85 | 86 80 87 Slowest Speed 120 | 120 80 120 Overloaded Moves . | . . . Propulsion Burnouts . | . . . Robots Hopped . | . . . Cave-ins Triggered . | . . . Exploration Rate (%) 19 | 3 14 40 Regions Visited 2 Branch Regions 1 Pre-discovered Areas . | . . . Known Exits Taken 1 | . 1 . Unknown Exits Taken 1 | 1 . . Scrap Searched . | . . . Spaces Dug . | . . . Terrain Destroyed . | . . . Melee . | . . . Projectile . | . . . AOE . | . . . Actions | -11 -10 -10 --------- Run | Scr Mat Min Total 426 | 109 111 206 Wait 41 | . 32 9 Move 318 | 76 71 171 Hop . | . . . Pick Up 9 | 6 3 . Fast Attach 13 | 8 1 4 Attach 1 | . 1 . Detach 1 | 1 . . Swap 3 | 1 . 2 Drop 10 | 5 2 3 Fire 25 | 12 1 12 Melee . | . . . Ram 5 | . . 5 Kick . | . . . Crush . | . . . Escape Stasis . | . . . Rewire . | . . . Trap . | . . . Miscellaneous . | . . . Route ------- -11/Scrapyard -10/Materials (discovered 2 exits: *Min x2) -10/Mines (discovered 1 exit: [*Mat]) History --------- Turn | Location | Event 26 | -11/Scrapyard | Discovered new exit (range 15) 121 | -11/Scrapyard | Entered Materials 164 | -10/Materials | Repaired Imp. Terrain Scanner 172 | -10/Materials | Discovered new exit (range 13) 174 | -10/Materials | Identified exit to Mines 218 | -10/Materials | Entered Mines 309 | -10/Mines | Lost 3 parts (1n2w) 389 | -10/Mines | Assembled infested the area 390 | -10/Mines | Discovered new exit (range 5) 391 | -10/Mines | Learned Materials security intel 403 | -10/Mines | Core integrity fell below 50% 424 | -10/Mines | Core integrity fell below 20% 424 | -10/Mines | Destroyed by D-53 Grenadier with Mini Grenade Launcher Last Messages --------------- 00397_ as-42800 destroyed. 00397_ as-30517 destroyed. 00397_ as-22179 destroyed. 00399_ as-93827 destroyed. 00399_ as-00948 destroyed. 00404_ U-05 Engineer lays Concrete. 00408_ K-01 Serf collects debris. 00409_ A derelict emerges from the shadows: "What are you doing alone down here?" 00409_ U-05 Engineer builds a Wall. 00410_ Flight Unit destroyed. 00410_ K-01 Serf collects debris. 00411_ V6-DJP(g): "Well, at least you look like you can take care of yourself!" 00412_ U-05 Engineer builds a Wall. 00413_ V6-DJP(g): "I have the funny feeling that things are about to get a lot worse around here, see you around!" 00413_ V6-DJP(g) slips back into the shadows. 00421_ Lgt. Ion Engine destroyed. 00422_ Lgt. Assault Rifle destroyed. 00422_ Imp. Terrain Scanner destroyed. 00423_ U-05 Engineer destroyed. Map ----- +----------------------------------------------------+ | | | | | | | | | | | | | | | | | | | | | | | | | | | | | | | ?##??#??#?????#????#??#???????????????? | | ?????#???####?????????????????????????? | | #?#?###### ###?#?????????????????????? | | ????## ##???#??????????????????? | | ????# #????###???? ?????????? | | ???## #???# ##?? ????????? | | ??## #??# # ???????? | | ?## d #### ???????? | | ### d ### # ???????? | | #?# ! #???????? | | ?## @ k u #???????? | | ??# #???????? | | ??# %!< ! #?????#?????? | | ?## ## #??#????????? | | ??######## ## ## ##?#####???????????? | | ?#??#???######### #?????#????????????? | | ?#??#????#?#??#?# ####?????#?? ??????? | | ???????#?????#??# #???????????????? | | ???##???#?#?##??# #???#?##????????? | | ??#??###????###?#### #???????????????? | | ??????##?#??##??#??# #???????????????? | | ???#????#?#?#???#??# #??#????#???????? | | ?????????#?#?#?##### #???????????????? | | ??#???#?#?#??#?# #??????##???????? | | ????#????###??## ### #? ?????????????? | | ??#??????#?????# #?# #???????????????? | | ?????????##????# ### ??????????????? | | ????????##???#?# ####### ????? ???????? | | ???????#????#??# #??##?#? ??? ????????? | | ?????#??????#### ##???? ? ???????????? | | ??????????#???## #??## ? ?? ???????? | | ??????#?????#?## #?#?#? ???? ????????? | | ?????#?######??# #??#?? ??#? ???????? | | ??#????## #### ##?### ##???? ???????? | | ??????## ## #??## #?#?# ????????? | +----------------------------------------------------+ Best States ------------- Heat Dissipation 25 Energy Generation 10 Energy Capacity 250 Matter Stores 300 Matter Capacity 300 Sight Range 16 Terrain Scan Range 16 Terrain Scan Density 60 Evasion (%) 62 Item Schematics ----------------- Hcp. Battery | -10/Materials | Hacked Robot Schematics ------------------ None Fabricated ------------ Nothing Alien Tech Used ----------------- None Achievements -------------- None Challenges ------------ None Game ------ Seed BattleStructuralBlade Manual? 0 Play Time 00:07:49 Cumulative 132.8 hours Start 2019.11.30 @ 21:28:11 End 2019.11.30 @ 21:33:49 Sessions 1 Manual Loads 0 Difficulty Rogue Special Mode None Game No. 180 Rogue 169 Adventurer 11 Explorer 0 Win Type - Total 0 Types 0/0/0/0/0/0/0 Lore% 45 Gallery% 58 Achievement% 40 Wizard Run 0 Options --------- ASCII 0 Keyboard 1 Movement Numpad Keybinds 0 Fullscreen 1 Font 12/Terminus Map View 83x54 Tactical HUD 1 Map Filters NONE Filters NONE Steam 1 RUN: 5c931a3d-ebc6-4712-ab04-c6a09ec5d2db